bitfinex-derivatives/quotes_SOLF0:USTF0_20241224
["timestamp","ask_amount","ask_price","bid_price","bid_amount"]
[1735030601224,8.27939749,193.13,193.08,56.38694344]
[1735030601628,8.27939749,193.13,193.06,8.27939749]
[1735030602036,3.04,193.16,193.06,8.27939749]
[1735030602237,8.27939749,193.13,193.08,2.5931]
[1735030602429,3.04,193.16,193.08,8.27939749]
[1735030602730,3.04,193.16,193.04,3.04]
[1735030602731,8.27939749,193.16,193.1,8.27939749]
[1735030602936,8.27939749,193.16,193.1,10.87219749]
[1735030603132,8.27939749,193.14,193.08,8.27939749]
[1735030603332,8.27939749,193.12,193.06,8.27939749]
[1735030603533,10.87209749,193.12,193.07,2.5933]
[1735030603930,10.87209749,193.12,193.06,2.5935]
[1735030604136,8.27939749,193.12,193.06,2.5935]
[1735030604435,8.27939749,193.1,193.03,11.50249749]
[1735030604625,8.27939749,193.1,193.05,2.5936]
[1735030606134,2.5928,193.11,193.05,2.5936]
[1735030606135,2.5928,193.11,193.06,2.5934]
[1735030606335,8.27939749,193.12,193.05,8.27939749]
[1735030606533,3.04,193.15,193.07,8.27939749]
[1735030606734,11.31939749,193.15,193.1,2.5928]
[1735030606933,11.31939749,193.15,193.09,8.27939749]
[1735030607133,8.27939749,193.17,193.09,8.27939749]
[1735030607336,10.87129749,193.18,193.12,2.5926]
[1735030607835,8.27939749,193.18,193.11,8.27939749]
[1735030608037,8.27939749,193.18,193.14,2.5923]
[1735030608232,5.6317,193.19,193.14,2.5923]
[1735030608433,2.5916,193.21,193.16,2.5921]
[1735030608633,3.04,193.23,193.12,12.8883418]
[1735030608831,3.04,193.24,193.12,16.0787418]
[1735030609037,3.04,193.24,193.2,2.5916]
[1735030609434,3.04,193.24,193.15,12.8883418]
[1735030609738,3.04,193.28,193.18,12.8883418]
[1735030610335,3.04,193.28,193.24,2.591]
[1735030610733,12.8883418,193.31,193.18,12.8883418]
[1735030610938,3.04,193.33,193.21,12.8883418]
[1735030611139,3.04,193.33,193.22,4.6615]
[1735030611734,5.63,193.33,193.25,2.5908]
[1735030611941,3.04,193.33,193.25,2.5908]
[1735030612136,12.8883418,193.32,193.22,4.6615]
[1735030613836,2.5903,193.3,193.23,2.591]
[1735030614341,2.5903,193.3,193.22,4.6615]
[1735030614342,2.5905,193.28,193.22,3.04]
[1735030614742,2.5905,193.28,193.18,12.8883418]
[1735030614946,15.4787418,193.29,193.18,15.9283418]
[1735030615846,15.4787418,193.29,193.23,2.5911]
[1735030616348,15.4787418,193.29,193.24,2.591]
[1735030617644,2.5905,193.28,193.23,2.5912]
[1735030618145,2.5907,193.27,193.22,2.5913]
[1735030618538,12.8883418,193.29,193.18,12.8883418]
[1735030618849,12.8883418,193.29,193.13,1.6003]
[1735030618850,3.04,193.28,193.16,3.04]
[1735030619344,2.5909,193.26,193.19,2.5917]
[1735030620350,3.04,193.28,193.19,2.5917]
[1735030620551,2.591,193.25,193.19,2.5917]
[1735030621445,15.4791418,193.27,193.21,2.5914]
[1735030621945,12.8883418,193.27,193.15,3.08]
[1735030622144,12.8883418,193.27,193.13,17.5686418]
[1735030622350,2.5911,193.24,193.13,17.5686418]
[1735030623049,12.8883418,193.27,193.13,17.5686418]
[1735030623352,2.5912,193.23,193.17,2.5919]
[1735030623746,12.8883418,193.24,193.17,2.5919]
[1735030624149,3.08,193.23,193.17,2.5919]
[1735030625351,3.08,193.23,193.13,14.4886418]
[1735030625650,3.08,193.23,193.19,2.5917]
[1735030625850,15.9683418,193.27,193.19,2.5917]
[1735030626647,2.5909,193.25,193.19,2.5917]
[1735030628852,15.9683418,193.27,193.13,14.4886418]
[1735030629051,2.5912,193.23,193.17,2.5919]
[1735030629448,12.8883418,193.24,193.17,2.5919]
[1735030629648,2.5915,193.21,193.16,2.5921]
[1735030630549,2.5915,193.21,193.13,1.6003]
[1735030630550,2.5913,193.22,193.17,2.592]
[1735030631050,15.9683418,193.27,193.13,14.4886418]
[1735030631548,12.8883418,193.27,193.16,12.8883418]
[1735030631753,2.5908,193.26,193.2,2.5915]
[1735030632353,2.5908,193.26,193.21,2.5914]
[1735030633254,3.08,193.28,193.16,15.9683418]
[1735030633450,16.0066418,193.3,193.22,2.5912]
[1735030633853,3.1183,193.3,193.19,12.8883418]
[1735030635050,2.5905,193.28,193.23,2.5911]
[1735030636648,2.5907,193.27,193.21,2.5913]
[1735030637656,2.5911,193.24,193.19,2.5916]
[1735030640656,2.5909,193.26,193.21,2.5913]
[1735030640850,3.08,193.29,193.16,12.8883418]
[1735030641548,2.5906,193.28,193.23,2.5911]
[1735030643154,2.5907,193.27,193.23,2.5911]
[1735030643354,2.5907,193.27,193.19,3.08]
[1735030643858,3.08,193.29,193.19,3.08]
[1735030644063,2.5908,193.26,193.19,3.08]
[1735030644262,3.08,193.29,193.19,3.08]
[1735030644451,2.5909,193.25,193.19,2.5917]
[1735030644650,3.08,193.29,193.19,2.5917]
[1735030644856,12.8883418,193.27,193.19,2.5917]
[1735030645463,2.5912,193.24,193.19,2.5917]
[1735030646660,2.5912,193.24,193.2,2.5915]
[1735030648854,2.5908,193.27,193.23,2.5912]
[1735030649059,73.53535125,193.35,193.21,3.08]
[1735030649360,2.5898,193.33,193.25,2.5908]
[1735030649558,73.53535125,193.35,193.22,15.9760418]
[1735030649751,0.77587422,193.34,193.22,3.0877]
[1735030649957,2.5903,193.3,193.24,2.591]
[1735030650561,2.5899,193.33,193.26,2.5908]
[1735030650767,15.9683418,193.35,193.26,2.5908]
[1735030650965,12.8883418,193.35,193.26,2.5908]
[1735030651165,3.1,193.34,193.26,2.5908]
[1735030651364,12.8883418,193.35,193.22,15.9760418]
[1735030651670,7.6568,193.36,193.22,15.9760418]
[1735030651671,4.5568,193.36,193.22,15.9760418]
[1735030652263,12.8883418,193.38,193.25,12.8883418]
[1735030652568,15.9883418,193.38,193.26,3.1]
[1735030652865,18.5775418,193.38,193.26,3.1]
[1735030653367,18.5775418,193.38,193.32,2.5899]
[1735030653568,2.5897,193.35,193.26,3.1]
[1735030653969,15.9883418,193.38,193.29,2.5903]
[1735030654771,15.9883418,193.38,193.28,2.5905]
[1735030654964,2.5898,193.34,193.28,2.5905]
[1735030655164,15.9883418,193.38,193.26,3.1]
[1735030655370,12.8883418,193.32,193.22,6.1877]
[1735030655571,2.5903,193.3,193.22,6.1877]
[1735030656275,2.5903,193.3,193.25,2.5909]
[1735030658876,2.5903,193.3,193.22,6.1877]
[1735030659075,2.5903,193.3,193.26,2.5908]
[1735030660574,2.5904,193.29,193.24,2.5909]
[1735030661680,2.5903,193.3,193.25,2.5909]
[1735030662777,4.1088,193.32,193.27,2.5906]
[1735030666580,2.5898,193.34,193.29,2.5903]
[1735030674882,12.8883418,193.36,193.29,2.5903]
[1735030675085,2.5899,193.33,193.29,2.5903]
[1735030676983,12.8883418,193.36,193.29,2.5903]
[1735030677183,15.9883418,193.39,193.25,15.9883418]
[1735030677588,15.9499418,193.41,193.28,12.8883418]
[1735030677783,0.77558245,193.4,193.28,12.8883418]
[1735030679590,2.5895,193.36,193.28,12.8883418]
[1735030680188,2.5895,193.36,193.32,2.59]
[1735030681287,15.9499418,193.41,193.28,12.8883418]
[1735030681486,0.77560312,193.4,193.28,12.8883418]
[1735030682088,12.8883418,193.38,193.25,15.9883418]
[1735030682890,3.1,193.37,193.25,15.9883418]
[1735030683088,3.1,193.37,193.25,3.1]
[1735030683790,2.5896,193.35,193.25,3.1]
[1735030685591,2.5896,193.35,193.31,2.5901]
[1735030686292,10.8242494,193.35,193.31,2.5901]
[1735030690990,10.8242494,193.35,193.28,8.2346494]
[1735030690991,8.2346494,193.35,193.32,2.59]
[1735030692994,8.2346494,193.33,193.28,2.5904]
[1735030693189,8.2346494,193.3,193.23,13.96517158]
[1735030693396,10.8251494,193.28,193.24,2.591]
[1735030693793,8.2346494,193.28,193.22,60.41392497]
[1735030693992,8.2346494,193.28,193.22,3.0877]
[1735030694193,10.8251494,193.28,193.23,2.5911]
[1735030695193,8.2346494,193.28,193.22,3.0877]
[1735030695393,3.1,193.32,193.22,3.0877]
[1735030695693,8.2346494,193.28,193.22,3.0877]
[1735030696094,8.2346494,193.26,193.15,13.97333372]
[1735030696288,8.2346494,193.24,193.17,8.2346494]
[1735030696992,8.2346494,193.24,193.21,2.5915]
[1735030699397,8.2346494,193.24,193.17,8.2346494]
[1735030700196,8.2346494,193.24,193.21,2.5915]
[1735030700497,8.2346494,193.24,193.14,3.1]
[1735030700697,8.2346494,193.22,193.14,11.3346494]
[1735030701100,2.5913,193.23,193.14,11.3346494]
[1735030701101,8.2346494,193.24,193.16,8.2346494]
[1735030701394,8.2346494,193.24,193.2,2.5915]
[1735030702294,8.2346494,193.24,193.16,8.2346494]
[1735030702591,8.2346494,193.24,193.21,2.5914]
[1735030703790,8.2346494,193.24,193.18,8.2346494]
[1735030703991,8.2346494,193.26,193.2,8.2346494]
[1735030704694,8.2346494,193.26,193.23,2.5911]
[1735030705297,8.2346494,193.26,193.25,2.5909]
[1735030705592,4.5455,193.31,193.19,3.1]
[1735030705794,8.2346494,193.28,193.22,2.5913]
[1735030705996,8.2346494,193.28,193.21,8.2346494]
[1735030706895,8.2346494,193.28,193.25,2.5909]
[1735030708197,8.2346494,193.26,193.25,2.5909]
[1735030710789,8.2346494,193.26,193.2,3.081]
[1735030711104,8.2346494,193.23,193.17,3.1]
[1735030711392,4.6197,193.31,193.17,3.1]
[1735030711594,8.2346494,193.24,193.17,11.3346494]
[1735030712199,8.2346494,193.24,193.17,3.1]
[1735030712806,8.2346494,193.24,193.2,2.5915]
[1735030712995,8.2346494,193.24,193.17,11.3346494]
[1735030713602,8.2346494,193.24,193.21,2.5914]
[1735030722500,3.08,193.28,193.17,8.2346494]
[1735030722702,3.08,193.28,193.16,1.5298]
[1735030722703,8.2346494,193.25,193.16,9.7644494]
[1735030722912,8.2346494,193.23,193.16,9.7644494]
[1735030723407,3.08,193.28,193.14,11.3146494]
[1735030723408,8.2346494,193.21,193.14,11.3146494]
[1735030724603,8.2346494,193.21,193.19,2.5917]
[1735030726809,2.5909,193.25,193.21,2.5914]
[1735030727007,8.2346494,193.24,193.21,2.5914]
[1735030728911,2.5904,193.29,193.25,2.5909]
[1735030729309,8.2346494,193.28,193.25,2.5909]
[1735030729511,2.5904,193.29,193.25,2.5909]
[1735030729711,8.2346494,193.28,193.25,2.5909]
[1735030731911,8.2346494,193.28,193.2,8.2346494]
[1735030732108,8.2346494,193.24,193.19,3.08]
[1735030732418,8.2346494,193.24,193.16,8.2346494]
[1735030732715,8.2346494,193.22,193.16,8.2346494]
[1735030733116,10.8259494,193.22,193.13,1.5365]
[1735030733312,10.8259494,193.22,193.14,8.2346494]
[1735030734520,10.8259494,193.22,193.18,2.5919]
[1735030735208,8.2346494,193.22,193.18,2.5919]
[1735030735813,3.08,193.27,193.18,2.5919]
[1735030736013,8.2346494,193.21,193.18,2.5919]
[1735030737518,8.2346494,193.21,193.19,2.5917]
[1735030737820,8.2346494,193.22,193.19,2.5917]
[1735030739521,8.2346494,193.22,193.21,2.5915]
[1735030740817,3.08,193.27,193.16,8.2346494]
[1735030741010,8.2346494,193.23,193.16,8.2346494]
[1735030741818,8.2346494,193.23,193.2,2.5915]
[1735030749739,8.2346494,193.23,193.21,2.5914]
[1735030754741,2.5909,193.25,193.21,2.5914]
[1735030754944,8.2346494,193.23,193.21,2.5914]
[1735030755137,2.5909,193.25,193.21,2.5914]
[1735030755443,8.2346494,193.23,193.21,2.5914]
[1735030755944,10.8254494,193.27,193.19,8.2346494]
[1735030756141,8.2346494,193.23,193.13,1.5365]
[1735030756332,8.2346494,193.21,193.13,9.7711494]
[1735030757039,8.2346494,193.19,193.15,2.5922]
[1735030757242,8.2346494,193.19,193.13,1.5365]
[1735030757538,8.2346494,193.15,193.12,2.5926]
[1735030759243,10.8269494,193.15,193.1,2.5929]
[1735030759845,8.2346494,193.15,193.12,2.5927]
[1735030761238,8.2346494,193.15,193.1,2.5928]
[1735030762446,8.2346494,193.13,193.06,11.3934494]
[1735030762647,8.2346494,193.11,193.09,2.5931]
[1735030763045,8.2346494,193.11,193.04,13.96861822]
[1735030763343,2.5929,193.11,193.06,2.5934]
[1735030763547,8.2346494,193.11,193.05,8.2346494]
[1735030764450,8.2346494,193.11,193.08,2.5932]
[1735030768446,7.3003,193.13,193.08,2.5932]
[1735030768647,8.2346494,193.11,193.08,2.5932]
[1735030770042,8.2346494,193.11,192.98,57.32622497]
[1735030770241,8.2346494,193.09,193.05,2.5935]
[1735030773151,2.9862,193.12,192.97,3.1408]
[1735030773354,8.2346494,193.03,192.96,48.12035011]
[1735030773559,8.2346494,193.01,192.96,48.12035011]
[1735030773756,8.2346494,193.01,192.95,57.32622497]
[1735030774955,8.2346494,193.01,192.94,93.21015621]
[1735030774956,8.2346494,193.01,192.97,2.5946]
[1735030775156,8.2346494,193.01,192.92,3.0637]
[1735030775356,3.06,193.05,192.92,3.0637]
[1735030775357,8.2346494,192.99,192.92,11.2983494]
[1735030775764,8.2346494,192.99,192.95,2.5948]
[1735030777157,8.2346494,193.01,192.97,2.5946]
[1735030778155,8.2346494,192.99,192.92,3.0637]
[1735030778463,8.2346494,192.99,192.92,11.2983494]
[1735030779460,10.8290494,192.99,192.94,2.5951]
[1735030779669,8.2346494,192.95,192.86,3.1882]
[1735030779853,8.2346494,192.93,192.86,3.1882]
[1735030780055,2.5951,192.94,192.88,2.5958]
[1735030780260,2.5951,192.94,192.86,11.4228494]
[1735030780456,8.2346494,192.93,192.86,11.4228494]
[1735030781162,8.2346494,192.92,192.86,11.4228494]
[1735030781362,8.2346494,192.92,192.88,2.5959]
[1735030783668,2.5952,192.93,192.88,2.5959]
[1735030783866,8.2346494,192.93,192.89,2.5958]
[1735030784055,8.2346494,192.91,192.84,8.2346494]
[1735030785565,8.2346494,192.91,192.87,2.5959]
[1735030788663,3.06,192.93,192.84,8.2346494]
[1735030788864,8.2346494,192.92,192.84,8.2346494]
[1735030790159,8.2346494,192.9,192.84,8.2346494]
[1735030790566,8.2346494,192.9,192.88,2.5959]
[1735030791667,8.2346494,192.9,192.89,2.5959]
[1735030800379,8.2346494,192.9,192.87,2.5961]
[1735030801080,8.2346494,192.9,192.88,2.596]
[1735030805685,8.2346494,192.9,192.81,1.6246]
[1735030805885,8.2346494,192.9,192.82,8.2346494]
[1735030807373,10.8303494,192.9,192.86,2.5962]
[1735030807578,8.2346494,192.92,192.86,8.2346494]
[1735030808479,10.8301494,192.92,192.88,2.5959]
[1735030809190,2.5955,192.92,192.88,2.5959]
[1735030809385,10.8301494,192.92,192.88,2.5959]
[1735030810890,8.2346494,192.93,192.89,2.5957]
[1735030812385,2.595,192.96,192.88,8.2346494]
[1735030812590,8.2346494,192.97,192.9,8.2346494]
[1735030812789,4.6563,193.08,192.92,8.2346494]
[1735030812990,4.6563,193.08,192.94,8.2346494]
[1735030812991,8.2346494,193.01,192.94,8.2346494]
[1735030813691,8.2346494,192.99,192.92,8.2346494]
[1735030814486,8.2346494,192.99,192.9,3.02]
[1735030814684,8.2346494,192.97,192.9,60.34622497]
[1735030815291,8.2346494,192.97,192.9,57.32622497]
[1735030815491,8.2346494,192.97,192.93,2.5952]
[1735030815991,10.8297494,192.95,192.9,2.5957]
[1735030816290,4.6563,193.08,192.88,57.32622497]
[1735030816291,8.2346494,192.92,192.88,57.32622497]
[1735030816687,8.2346494,192.92,192.86,60.43372497]
[1735030817087,8.2346494,192.94,192.87,8.2346494]
[1735030817982,8.2346494,192.92,192.86,3.1075]
[1735030818491,8.2346494,192.92,192.88,2.5959]
[1735030818893,8.2346494,192.92,192.86,3.1075]
[1735030820398,5.6148,192.97,192.87,8.2346494]
[1735030820696,8.2346494,192.94,192.87,8.2346494]
[1735030820894,8.2346494,192.94,192.89,2.5958]
[1735030821091,8.2346494,192.94,192.87,8.2346494]
[1735030821495,8.2346494,192.94,192.91,2.5956]
[1735030822196,3.02,192.97,192.93,2.5953]
[1735030822400,8.2346494,192.98,192.91,8.2346494]
[1735030823095,8.2346494,192.98,192.96,2.5949]
[1735030823488,1.6103,193.01,192.93,8.2346494]
[1735030823794,8.2346494,193.0,192.93,8.2346494]
[1735030825003,8.2346494,192.98,192.91,8.2346494]
[1735030826494,8.2346494,192.98,192.95,2.595]
[1735030827996,10.8291494,193.0,192.95,2.595]
[1735030828996,8.2346494,192.98,192.95,2.595]
[1735030829695,8.2346494,192.98,192.96,2.5949]
[1735030829900,2.5938,193.04,192.95,8.2346494]
[1735030830100,8.2346494,193.03,192.95,8.2346494]
[1735030830498,8.2346494,193.01,192.93,11.2546494]
[1735030831107,8.2346494,193.01,192.98,2.5945]
[1735030831797,8.2346494,192.99,192.93,11.2546494]
[1735030831997,8.2346494,192.99,192.9,8.2346494]
[1735030832601,10.8291494,192.99,192.94,2.5951]
[1735030832799,10.8291494,192.99,192.9,8.2346494]
[1735030833292,10.8291494,192.99,192.95,2.595]
[1735030833900,2.5942,193.02,192.97,2.5947]
[1735030834095,8.2346494,193.0,192.94,8.2346494]
[1735030835405,8.2346494,193.0,192.97,2.5947]
[1735030836806,1.6074,193.03,192.89,4.6356]
[1735030836807,8.2346494,192.98,192.89,4.6356]
[1735030837000,8.2346494,192.98,192.9,8.2346494]
[1735030837897,8.2346494,192.98,192.94,2.5952]
[1735030838104,1.6074,193.03,192.92,8.2346494]
[1735030838404,8.2346494,192.99,192.92,8.2346494]
[1735030839208,1.6074,193.03,192.94,8.2346494]
[1735030839406,8.2346494,193.01,192.94,8.2346494]
[1735030839599,8.2346494,193.01,192.98,2.5946]
[1735030842813,3.04,193.05,192.94,8.2346494]
[1735030843004,8.2346494,193.02,192.99,2.5944]
[1735030846923,8.2346494,193.02,192.94,8.2346494]
[1735030847223,8.2346494,193.02,192.98,2.5946]
[1735030847721,10.8287494,193.02,192.98,2.5946]
[1735030848517,2.5941,193.02,192.98,2.5946]
[1735030849024,2.5939,193.04,193.0,2.5943]
[1735030849720,8.2346494,193.02,192.94,3.0304]
[1735030849918,8.2346494,193.0,192.94,3.0304]
[1735030850424,10.8290494,193.0,192.95,2.5949]
[1735030852019,2.5944,193.0,192.95,2.5949]
[1735030853721,2.5946,192.99,192.95,2.5949]
[1735030853915,8.2346494,192.98,192.9,56.37149633]
[1735030854120,8.2346494,193.01,192.94,8.2346494]
[1735030854520,2.5947,192.98,192.94,2.5952]
[1735030854726,2.5947,192.98,192.9,48.13684693]
[1735030854926,2.5947,192.98,192.92,8.2346494]
[1735030855127,2.5948,192.97,192.92,10.8300494]
[1735030855628,2.5948,192.97,192.92,2.5954]
[1735030856022,8.2346494,192.97,192.9,48.13684693]
[1735030856220,10.8297494,192.95,192.9,2.5956]
[1735030856426,10.8297494,192.95,192.87,12.7643494]
[1735030856427,8.2346494,192.95,192.87,12.7643494]
[1735030857025,8.2346494,192.95,192.89,8.2346494]
[1735030857420,2.5952,192.94,192.89,10.8304494]
[1735030858018,3.04,192.98,192.87,4.5297]
[1735030858019,2.9748,193.01,192.91,8.2346494]
[1735030858226,8.2346494,192.99,192.91,8.2346494]
[1735030859629,10.8291494,192.99,192.94,2.5952]
[1735030863031,10.8291494,192.99,192.91,8.2346494]
[1735030863233,10.8291494,192.99,192.95,2.595]
[1735030865934,8.2346494,192.99,192.95,2.595]
[1735030866235,2.5944,193.0,192.95,2.595]
[1735030866534,2.5944,193.0,192.93,8.2346494]
[1735030866535,13.8038494,193.01,192.88,13.97844674]
[1735030866726,13.8038494,193.01,192.93,8.2346494]
[1735030867236,13.8038494,193.01,192.96,2.5948]
[1735030867736,1.5252,193.02,192.95,8.2346494]
[1735030868031,2.5941,193.03,192.99,2.5944]
[1735030868536,8.2346494,193.04,192.97,8.2346494]
[1735030869237,8.2346494,193.06,192.99,8.2346494]
[1735030869631,8.2346494,193.08,193.01,8.2346494]
[1735030870035,8.2346494,193.08,193.05,2.5937]
[1735030870236,1.18840001,193.11,193.03,8.2346494]
[1735030870538,2.5927,193.13,193.05,8.2346494]
[1735030870739,8.2346494,193.12,193.05,8.2346494]
[1735030874040,2.5926,193.13,193.05,8.2346494]
[1735030874337,8.2346494,193.12,193.05,8.2346494]
[1735030874644,8.2346494,193.12,193.07,2.5934]
[1735030876242,10.8277494,193.1,193.03,8.2346494]
[1735030876635,10.8277494,193.1,193.05,2.5936]
[1735030879247,8.2346494,193.08,193.05,2.5936]
[1735030881144,10.8277494,193.1,193.05,10.8282494]
[1735030881551,2.5929,193.12,193.07,10.8280494]
[1735030883251,8.2346494,193.11,193.07,2.5934]
[1735030883946,10.8276494,193.11,193.07,2.5934]
[1735030884154,8.2346494,193.11,193.05,2.5936]
[1735030885550,2.5931,193.1,193.05,10.8282494]
[1735030886349,2.5932,193.09,193.05,10.8282494]
[1735030887147,2.5932,193.09,193.05,2.5936]
[1735030887551,8.2346494,193.09,193.01,1.5009]
[1735030887752,8.2346494,193.09,193.01,9.7355494]
[1735030889453,2.5935,193.07,193.03,2.594]
[1735030890654,10.8279494,193.09,193.04,2.5938]
[1735030890855,8.2346494,193.09,193.04,2.5938]
[1735030892253,3.08,193.12,192.96,3.04]
[1735030892254,8.2346494,193.05,192.96,3.04]
[1735030892454,8.2346494,193.05,192.97,8.2346494]
[1735030892650,8.2346494,193.05,193.01,2.5942]
[1735030892852,8.2346494,193.03,192.93,3.1194]
[1735030893153,8.2346494,193.03,192.96,8.2346494]
[1735030894456,10.8286494,193.03,192.99,2.5945]
[1735030894853,1.5417,193.06,192.98,8.2346494]
[1735030895066,1.5417,193.06,193.0,8.2346494]
[1735030895250,1.5417,193.06,193.02,2.5941]
[1735030895453,13.8682494,193.07,193.0,8.2346494]
[1735030895856,1.6023,193.13,193.03,2.5939]
[1735030896160,10.8279494,193.09,193.02,8.2346494]
[1735030896955,2.5933,193.09,193.02,8.2346494]
[1735030897159,10.8279494,193.09,193.02,8.2346494]
[1735030897660,10.8279494,193.09,193.04,2.5938]
[1735030897853,1.6023,193.13,193.02,8.2346494]
[1735030898055,2.593,193.1,193.05,2.5936]
[1735030898454,10.8275494,193.11,193.07,2.5934]
[1735030898656,1.6023,193.13,193.04,8.2346494]
[1735030898857,1.6023,193.13,193.08,8.2346494]
[1735030899060,8.2346494,193.15,193.12,2.5928]
[1735030899259,3.04,193.16,193.08,8.2346494]
[1735030899456,7.7865,193.21,193.12,8.2346494]
[1735030899656,8.2346494,193.2,193.16,2.5922]
[1735030900163,8.2346494,193.2,193.12,8.2346494]
[1735030900363,8.2346494,193.2,193.14,2.5924]
[1735030901055,8.2346494,193.2,193.15,2.5924]
[1735030901561,8.2346494,193.2,193.12,8.2346494]
[1735030902868,2.5913,193.24,193.14,8.2346494]
[1735030903070,8.2346494,193.24,193.16,8.2346494]
[1735030903276,1.25309474,193.25,193.18,8.2346494]
[1735030903573,9.48774414,193.25,193.18,8.2346494]
[1735030904273,9.48774414,193.25,193.21,2.5914]
[1735030904472,8.2346494,193.23,193.14,3.04]
[1735030904675,8.2346494,193.21,193.14,11.2746494]
[1735030905076,1.25309474,193.25,193.15,2.5923]
[1735030905077,8.2346494,193.19,193.15,2.5923]
[1735030906175,12.88670277,193.23,193.15,2.5923]
[1735030906476,2.5917,193.21,193.15,2.5923]
[1735030908081,12.88670277,193.23,193.1,20.62840277]
[1735030908280,2.5915,193.22,193.16,2.5921]
[1735030908483,2.5915,193.22,193.13,12.88670277]
[1735030909083,5.6312,193.24,193.13,12.88670277]
[1735030910182,3.04,193.24,193.13,12.88670277]
[1735030910479,2.5916,193.21,193.16,2.5922]
[1735030911476,12.88670277,193.2,193.07,12.88670277]
[1735030911782,12.88670277,193.2,193.02,57.32622497]
[1735030911783,12.88670277,193.17,193.06,3.04]
[1735030912374,6.1778,193.19,193.04,1.5601]
[1735030912575,12.88670277,193.14,193.03,1.5423]
[1735030912782,3.04,193.13,193.01,12.88670277]
[1735030912980,12.88670277,193.11,192.99,1.5601]
[1735030913179,1.5478,193.1,192.99,1.5601]
[1735030913387,2.5936,193.06,192.99,2.5944]
[1735030913978,15.92670277,193.08,192.97,2.5947]
[1735030914677,12.88670277,193.05,192.97,2.5947]
[1735030915475,2.594,193.03,192.97,2.5947]
[1735030919485,2.5937,193.05,193.0,2.5944]
[1735030920584,2.5936,193.06,193.0,2.5944]
[1735030921486,3.06,193.09,192.99,12.88670277]
[1735030921687,3.06,193.09,193.02,12.88670277]
[1735030921992,3.06,193.09,193.05,2.5937]
[1735030923288,3.06,193.09,193.06,2.5936]
[1735030925391,2.5929,193.12,193.06,2.5936]
[1735030925596,12.88670277,193.14,193.02,12.88670277]
[1735030925597,2.5926,193.14,193.09,2.5931]
[1735030926391,3.06,193.16,193.09,2.5931]
[1735030926589,2.5924,193.15,193.05,12.88670277]
[1735030926795,2.5924,193.15,193.1,2.5929]
[1735030928091,5.6521,193.17,193.05,12.88670277]
[1735030929197,2.5921,193.17,193.05,12.88670277]
[1735030929391,2.5921,193.17,193.12,2.5927]
[1735030931799,15.47880277,193.17,193.12,2.5927]
[1735030932796,12.88670277,193.17,193.12,2.5927]
[1735030932997,4.6806,193.19,193.13,2.5926]
[1735030933194,3.06,193.18,193.13,2.5926]
[1735030934596,5.652,193.18,193.13,2.5926]
[1735030934992,2.5921,193.17,193.13,2.5926]
[1735030935491,3.06,193.18,193.08,12.88670277]
[1735030935699,2.5922,193.16,193.11,2.5928]
[1735030937488,2.5924,193.15,193.11,2.5928]
[1735030937690,3.06,193.18,193.13,2.5926]
[1735030938398,2.5921,193.17,193.13,2.5926]
[1735030938797,3.06,193.18,193.09,2.5931]
[1735030938998,12.88670277,193.17,193.09,2.5931]
[1735030940996,2.5926,193.14,193.09,2.5931]
[1735030946301,2.5926,193.14,193.09,10.84443228]
[1735030947002,13.90363228,193.16,193.11,2.5928]
[1735030948102,11.31133228,193.16,193.11,2.5928]
[1735030948302,2.5924,193.15,193.11,2.5928]
[1735030949205,3.06,193.16,193.11,8.25133228]
[1735030949502,10.84333228,193.18,193.13,2.5925]
[1735030949892,2.5921,193.17,193.13,2.5925]
[1735030950100,8.25133228,193.18,193.12,2.5927]
[1735030950505,8.25133228,193.16,193.1,2.593]
[1735030950701,8.25133228,193.14,193.06,8.25133228]
[1735030951003,10.84383228,193.14,193.09,2.593]
[1735030951208,10.84383228,193.14,193.06,8.25133228]
[1735030951504,3.06,193.15,193.1,8.25133228]
[1735030951697,3.06,193.15,193.11,2.5928]
[1735030951892,3.06,193.15,193.1,8.25133228]
[1735030952901,3.06,193.15,193.12,2.5927]
[1735030960110,3.06,193.15,193.11,2.5929]
[1735030963023,5.6524,193.15,193.11,2.5929]
[1735030963519,3.06,193.15,193.12,2.5928]